[Event "Titled Tuesday Blitz November 01 Late 2022"]
[White "Al Hosani, Omran"]
[Black "Pace, Christopher"]
[WhiteFideId "9308733"]
[BlackFideId "2610167"]
[WhiteElo "2167"]
[BlackElo "2281"]
[Result "1-0"]
[Round "02"]
[TimeControl "180+1"]
[Date "2022.11.02"]
[WhiteClock "0:00:18"]
[BlackClock "0:00:10"]

1. e4 {[%clk 0:02:59]}  e5 {[%clk 0:03:00]} 2. Nf3 {[%clk 0:03:00]}  Nc6 {[%clk 0:03:00]} 3. d4 {[%clk 0:03:00]}  exd4 {[%clk 0:03:01]} 4. Nxd4 {[%clk 0:03:01]}  Bc5 {[%clk 0:03:01]} 5. Nf5 {[%clk 0:03:00]}  g6 {[%clk 0:02:46]} 6. Be3 {[%clk 0:02:46]}  Bxe3 {[%clk 0:02:39]} 7. Nxe3 {[%clk 0:02:46]}  Nf6 {[%clk 0:02:39]} 8. Nc3 {[%clk 0:02:44]}  O-O {[%clk 0:02:39]} 9. Qd2 {[%clk 0:02:43]}  Re8 {[%clk 0:02:39]} 10. f3 {[%clk 0:02:42]}  d6 {[%clk 0:02:27]} 11. O-O-O {[%clk 0:02:42]}  a6 {[%clk 0:02:08]} 12. h4 {[%clk 0:02:42]}  Nh5 {[%clk 0:01:53]} 13. g4 {[%clk 0:02:38]}  Ng3 {[%clk 0:01:53]} 14. Rh2 {[%clk 0:02:35]}  Nxf1 {[%clk 0:01:53]} 15. Rxf1 {[%clk 0:02:35]}  Ne5 {[%clk 0:01:53]} 16. h5 {[%clk 0:02:32]}  c6 {[%clk 0:01:44]} 17. Ng2 {[%clk 0:02:19]}  Qf6 {[%clk 0:01:38]} 18. hxg6 {[%clk 0:02:16]}  fxg6 {[%clk 0:01:30]} 19. g5 {[%clk 0:02:12]}  Qe7 {[%clk 0:01:20]} 20. f4 {[%clk 0:02:10]}  Rf8 {[%clk 0:01:00]} 21. Rhh1 {[%clk 0:01:55]}  Nd7 {[%clk 0:00:50]} 22. Rd1 {[%clk 0:01:51]}  Nc5 {[%clk 0:00:34]} 23. Qxd6 {[%clk 0:01:42]}  Qxd6 {[%clk 0:00:35]} 24. Rxd6 {[%clk 0:01:43]}  Ne6 {[%clk 0:00:35]} 25. Rh4 {[%clk 0:01:37]}  Rd8 {[%clk 0:00:32]} 26. Rxd8+ {[%clk 0:01:34]}  Nxd8 {[%clk 0:00:32]} 27. Ne3 {[%clk 0:01:32]}  Nf7 {[%clk 0:00:29]} 28. e5 {[%clk 0:01:23]}  Bf5 {[%clk 0:00:19]} 29. Ne2 {[%clk 0:01:18]}  Re8 {[%clk 0:00:17]} 30. Ng3 {[%clk 0:01:17]}  Bc8 {[%clk 0:00:02]} 31. Ne4 {[%clk 0:01:17]}  Kg7 {[%clk 0:00:02]} 32. Nf6 {[%clk 0:01:16]}  Rh8 {[%clk 0:00:02]} 33. Neg4 {[%clk 0:00:49]}  h6 {[%clk 0:00:03]} 34. gxh6+ {[%clk 0:00:31]}  Nxh6 {[%clk 0:00:04]} 35. Rxh6 {[%clk 0:00:26]}  Rxh6 {[%clk 0:00:05]} 36. Ne8+ {[%clk 0:00:25]}  Kh7 {[%clk 0:00:03]} 37. Nxh6 {[%clk 0:00:21]}  Kxh6 {[%clk 0:00:04]} 38. Kd2 {[%clk 0:00:21]}  g5 {[%clk 0:00:04]} 39. fxg5+ {[%clk 0:00:19]}  Kxg5 {[%clk 0:00:05]} 40. Nd6 {[%clk 0:00:20]}  Be6 {[%clk 0:00:05]} 41. Nxb7 {[%clk 0:00:20]}  Kf5 {[%clk 0:00:05]} 42. Nc5 {[%clk 0:00:20]}  Bd5 {[%clk 0:00:05]} 43. Nd3 {[%clk 0:00:20]}  Bc4 {[%clk 0:00:04]} 44. Kc3 {[%clk 0:00:19]}  Bxd3 {[%clk 0:00:04]} 45. Kxd3 {[%clk 0:00:18]}  Kxe5 {[%clk 0:00:05]} 46. Kc4 {[%clk 0:00:19]}  Kd6 {[%clk 0:00:05]} 47. Kb4 {[%clk 0:00:19]}  Kc7 {[%clk 0:00:05]} 48. Ka5 {[%clk 0:00:20]}  Kb7 {[%clk 0:00:06]} 49. b4 {[%clk 0:00:20]}  Ka7 {[%clk 0:00:07]} 50. Ka4 {[%clk 0:00:16]}  Kb6 {[%clk 0:00:07]} 51. Kb3 {[%clk 0:00:17]}  Kb5 {[%clk 0:00:07]} 52. a4+ {[%clk 0:00:17]}  Kb6 {[%clk 0:00:08]} 53. Kc4 {[%clk 0:00:17]}  Kb7 {[%clk 0:00:08]} 54. Kc5 {[%clk 0:00:18]}  Kc7 {[%clk 0:00:09]} 55. c3 {[%clk 0:00:17]}  Kb7 {[%clk 0:00:09]} 56. Kd6 {[%clk 0:00:18]}  Kb6 {[%clk 0:00:09]} 57. c4 {[%clk 0:00:17]}  a5 {[%clk 0:00:08]} 58. bxa5+ {[%clk 0:00:17]}  Kxa5 {[%clk 0:00:09]} 59. Kxc6 {[%clk 0:00:17]}  Kxa4 {[%clk 0:00:10]} 60. Kb6 {[%clk 0:00:18]} 1-0


[Site "https://www.chess.com"]

[Event "Titled Tuesday Blitz November 01 Late 2022"]
[White "Ali Abdullahi, Farah"]
[Black "Potapova, Margarita"]
[WhiteFideId "16100212"]
[BlackFideId "14126869"]
[WhiteElo "2298"]
[BlackElo "2150"]
[Result "0-1"]
[Round "02"]
[TimeControl "180+1"]
[Date "2022.11.02"]
[WhiteClock "0:00:16"]
[BlackClock "0:00:53"]

1. d4 {[%clk 0:02:58]}  d5 {[%clk 0:02:59]} 2. Nf3 {[%clk 0:02:59]}  Nf6 {[%clk 0:02:58]} 3. c4 {[%clk 0:03:00]}  e6 {[%clk 0:02:58]} 4. cxd5 {[%clk 0:03:01]}  exd5 {[%clk 0:02:59]} 5. Nc3 {[%clk 0:03:02]}  c6 {[%clk 0:03:00]} 6. Bg5 {[%clk 0:03:03]}  Be7 {[%clk 0:03:00]} 7. e3 {[%clk 0:03:03]}  Bf5 {[%clk 0:03:00]} 8. Bd3 {[%clk 0:03:03]}  Bxd3 {[%clk 0:03:01]} 9. Qxd3 {[%clk 0:03:04]}  O-O {[%clk 0:03:02]} 10. O-O {[%clk 0:03:04]}  Nbd7 {[%clk 0:03:02]} 11. Bxf6 {[%clk 0:03:04]}  Nxf6 {[%clk 0:03:02]} 12. Rfe1 {[%clk 0:03:05]}  Re8 {[%clk 0:02:57]} 13. e4 {[%clk 0:03:05]}  dxe4 {[%clk 0:02:57]} 14. Nxe4 {[%clk 0:03:06]}  Nd5 {[%clk 0:02:57]} 15. Nc3 {[%clk 0:03:02]}  Nf6 {[%clk 0:02:50]} 16. h3 {[%clk 0:02:58]}  Bb4 {[%clk 0:02:46]} 17. a3 {[%clk 0:02:56]}  Bxc3 {[%clk 0:02:46]} 18. bxc3 {[%clk 0:02:57]}  Qa5 {[%clk 0:02:42]} 19. Ne5 {[%clk 0:02:55]}  Rad8 {[%clk 0:02:36]} 20. Qc4 {[%clk 0:02:54]}  Nd5 {[%clk 0:02:25]} 21. Qb3 {[%clk 0:02:51]}  f6 {[%clk 0:02:13]} 22. Nf3 {[%clk 0:02:44]}  Qb6 {[%clk 0:02:06]} 23. Qa2 {[%clk 0:02:38]}  Kh8 {[%clk 0:02:02]} 24. c4 {[%clk 0:02:35]}  Nf4 {[%clk 0:02:03]} 25. Qc2 {[%clk 0:02:28]}  Qa5 {[%clk 0:01:57]} 26. Rxe8+ {[%clk 0:02:19]}  Rxe8 {[%clk 0:01:58]} 27. Rb1 {[%clk 0:02:11]}  b6 {[%clk 0:01:57]} 28. Ra1 {[%clk 0:01:59]}  Re2 {[%clk 0:01:41]} 29. Qc1 {[%clk 0:01:47]}  Re4 {[%clk 0:01:34]} 30. Qb1 {[%clk 0:01:38]}  Re8 {[%clk 0:01:27]} 31. Qc2 {[%clk 0:01:32]}  Qh5 {[%clk 0:01:25]} 32. Qb3 {[%clk 0:01:26]}  Qg6 {[%clk 0:01:21]} 33. Nh4 {[%clk 0:01:23]}  Qg5 {[%clk 0:01:19]} 34. g3 {[%clk 0:01:12]}  Nxh3+ {[%clk 0:01:19]} 35. Kg2 {[%clk 0:01:10]}  Nf4+ {[%clk 0:01:19]} 36. Kf3 {[%clk 0:01:09]}  Qh5+ {[%clk 0:01:14]} 37. Kxf4 {[%clk 0:01:05]}  g5+ {[%clk 0:01:14]} 38. Kf5 {[%clk 0:00:59]}  gxh4+ {[%clk 0:01:14]} 39. Kf4 {[%clk 0:00:56]}  h3 {[%clk 0:01:05]} 40. g4 {[%clk 0:00:38]}  Qh4 {[%clk 0:01:02]} 41. Qg3 {[%clk 0:00:28]}  Qg5+ {[%clk 0:01:02]} 42. Kf3 {[%clk 0:00:28]}  Qd2 {[%clk 0:00:52]} 43. Rh1 {[%clk 0:00:18]}  Qe2+ {[%clk 0:00:52]} 44. Kf4 {[%clk 0:00:16]}  Qe4# {[%clk 0:00:53]} 0-1


[Site "https://www.chess.com"]

[Event "Titled Tuesday Blitz November 01 Late 2022"]
[White "Ardila, Oscar Humberto"]
[Black "Budisavljevic, Luka"]
[WhiteFideId "4404742"]
[BlackFideId "960047"]
[WhiteElo "1898"]
[BlackElo "2424"]
[Result "1/2-1/2"]
[Round "02"]
[TimeControl "180+1"]
[Date "2022.11.02"]
[WhiteClock "0:00:18"]
[BlackClock "0:00:08"]

1. d4 {[%clk 0:03:00]}  Nf6 {[%clk 0:02:59]} 2. c4 {[%clk 0:03:00]}  a6 {[%clk 0:02:59]} 3. Nc3 {[%clk 0:03:00]}  c5 {[%clk 0:02:55]} 4. dxc5 {[%clk 0:02:59]}  e6 {[%clk 0:02:53]} 5. Nf3 {[%clk 0:02:59]}  Bxc5 {[%clk 0:02:52]} 6. Bg5 {[%clk 0:02:59]}  O-O {[%clk 0:02:46]} 7. e3 {[%clk 0:02:59]}  h6 {[%clk 0:02:40]} 8. Bh4 {[%clk 0:02:58]}  b6 {[%clk 0:02:33]} 9. Be2 {[%clk 0:02:57]}  Bb7 {[%clk 0:02:34]} 10. O-O {[%clk 0:02:57]}  Be7 {[%clk 0:02:32]} 11. Qc2 {[%clk 0:02:55]}  Nc6 {[%clk 0:02:32]} 12. a3 {[%clk 0:02:54]}  Rc8 {[%clk 0:02:30]} 13. Rfd1 {[%clk 0:02:52]}  Qc7 {[%clk 0:02:30]} 14. Bg3 {[%clk 0:02:51]}  d6 {[%clk 0:02:30]} 15. b4 {[%clk 0:02:48]}  Nh5 {[%clk 0:02:26]} 16. Rac1 {[%clk 0:02:40]}  Nxg3 {[%clk 0:02:24]} 17. hxg3 {[%clk 0:02:40]}  Rfd8 {[%clk 0:02:23]} 18. Qb3 {[%clk 0:02:39]}  Qb8 {[%clk 0:02:23]} 19. Nd4 {[%clk 0:02:36]}  Ne5 {[%clk 0:02:21]} 20. f4 {[%clk 0:02:31]}  Nd7 {[%clk 0:02:18]} 21. Bf3 {[%clk 0:02:29]}  Nf6 {[%clk 0:02:15]} 22. e4 {[%clk 0:02:08]}  Bf8 {[%clk 0:01:58]} 23. a4 {[%clk 0:01:54]}  e5 {[%clk 0:01:41]} 24. Nf5 {[%clk 0:01:50]}  Qa8 {[%clk 0:01:25]} 25. Nd5 {[%clk 0:01:47]}  Bxd5 {[%clk 0:01:22]} 26. cxd5 {[%clk 0:01:43]}  Nd7 {[%clk 0:01:12]} 27. Qe3 {[%clk 0:01:33]}  Rxc1 {[%clk 0:01:06]} 28. Rxc1 {[%clk 0:01:22]}  Rc8 {[%clk 0:01:07]} 29. Rc3 {[%clk 0:01:07]}  a5 {[%clk 0:01:04]} 30. Rxc8 {[%clk 0:00:52]}  Qxc8 {[%clk 0:01:03]} 31. bxa5 {[%clk 0:00:52]}  bxa5 {[%clk 0:01:01]} 32. Kh2 {[%clk 0:00:52]}  g6 {[%clk 0:00:53]} 33. Nh4 {[%clk 0:00:50]}  Be7 {[%clk 0:00:45]} 34. Bg4 {[%clk 0:00:46]}  Qd8 {[%clk 0:00:40]} 35. Bxd7 {[%clk 0:00:33]}  Qxd7 {[%clk 0:00:41]} 36. Nf3 {[%clk 0:00:32]}  exf4 {[%clk 0:00:38]} 37. gxf4 {[%clk 0:00:29]}  Qxa4 {[%clk 0:00:38]} 38. e5 {[%clk 0:00:29]}  Qb4 {[%clk 0:00:27]} 39. e6 {[%clk 0:00:27]}  f5 {[%clk 0:00:22]} 40. Qa7 {[%clk 0:00:22]}  Qxf4+ {[%clk 0:00:17]} 41. Kg1 {[%clk 0:00:22]}  Qc1+ {[%clk 0:00:13]} 42. Kh2 {[%clk 0:00:22]}  Qf4+ {[%clk 0:00:12]} 43. Kg1 {[%clk 0:00:22]}  Kf8 {[%clk 0:00:11]} 44. Qa8+ {[%clk 0:00:19]}  Kg7 {[%clk 0:00:11]} 45. Qxa5 {[%clk 0:00:18]}  Qc1+ {[%clk 0:00:09]} 46. Kh2 {[%clk 0:00:18]}  Qf4+ {[%clk 0:00:09]} 47. Kg1 {[%clk 0:00:18]}  Qc1+ {[%clk 0:00:08]} 48. Kh2 {[%clk 0:00:18]}  Qf4+ {[%clk 0:00:08]} 49. Kg1 {[%clk 0:00:18]} 1/2-1/2


[Site "https://www.chess.com"]

[Event "Titled Tuesday Blitz November 01 Late 2022"]
[White "Arnold, Ken"]
[Black "Ladan, Nicholas"]
[WhiteFideId "2056836"]
[BlackFideId "30918855"]
[WhiteElo "2321"]
[BlackElo "2167"]
[Result "0-1"]
[Round "02"]
[TimeControl "180+1"]
[Date "2022.11.02"]
[WhiteClock "0:01:03"]
[BlackClock "0:01:04"]

1. d4 {[%clk 0:03:00]}  d5 {[%clk 0:03:00]} 2. c4 {[%clk 0:03:00]}  c6 {[%clk 0:02:58]} 3. Nf3 {[%clk 0:03:00]}  Nf6 {[%clk 0:02:59]} 4. cxd5 {[%clk 0:03:01]}  cxd5 {[%clk 0:02:59]} 5. Nc3 {[%clk 0:03:01]}  Nc6 {[%clk 0:02:59]} 6. Bf4 {[%clk 0:03:01]}  a6 {[%clk 0:02:56]} 7. e3 {[%clk 0:03:01]}  Bf5 {[%clk 0:02:54]} 8. Bd3 {[%clk 0:03:01]}  Bxd3 {[%clk 0:02:53]} 9. Qxd3 {[%clk 0:03:02]}  e6 {[%clk 0:02:54]} 10. O-O {[%clk 0:03:02]}  Bd6 {[%clk 0:02:54]} 11. Rfe1 {[%clk 0:03:00]}  O-O {[%clk 0:02:47]} 12. Rac1 {[%clk 0:03:00]}  Bxf4 {[%clk 0:02:42]} 13. exf4 {[%clk 0:03:00]}  Qd6 {[%clk 0:02:43]} 14. Ne5 {[%clk 0:02:59]}  Rfc8 {[%clk 0:02:43]} 15. a3 {[%clk 0:02:58]}  Ne7 {[%clk 0:02:41]} 16. Na4 {[%clk 0:02:53]}  Nf5 {[%clk 0:02:37]} 17. g3 {[%clk 0:02:51]}  Rc7 {[%clk 0:02:26]} 18. Rc5 {[%clk 0:02:48]}  b6 {[%clk 0:02:18]} 19. Rc3 {[%clk 0:02:39]}  Rac8 {[%clk 0:02:14]} 20. Rec1 {[%clk 0:02:34]}  b5 {[%clk 0:02:00]} 21. Nc5 {[%clk 0:02:30]}  h5 {[%clk 0:01:39]} 22. a4 {[%clk 0:02:10]}  b4 {[%clk 0:01:28]} 23. R3c2 {[%clk 0:02:08]}  a5 {[%clk 0:01:27]} 24. b3 {[%clk 0:02:00]}  Ne4 {[%clk 0:01:27]} 25. Nxe4 {[%clk 0:01:51]}  dxe4 {[%clk 0:01:26]} 26. Qxe4 {[%clk 0:01:47]}  Rxc2 {[%clk 0:01:25]} 27. Rxc2 {[%clk 0:01:41]}  Rxc2 {[%clk 0:01:20]} 28. Qxc2 {[%clk 0:01:37]}  Nxd4 {[%clk 0:01:18]} 29. Qc8+ {[%clk 0:01:33]}  Kh7 {[%clk 0:01:17]} 30. Nxf7 {[%clk 0:01:25]}  Nf3+ {[%clk 0:01:10]} 31. Kg2 {[%clk 0:01:20]}  Qd5 {[%clk 0:01:08]} 32. Ng5+ {[%clk 0:01:03]}  Nxg5+ {[%clk 0:01:04]} 0-1


[Site "https://www.chess.com"]

[Event "Titled Tuesday Blitz November 01 Late 2022"]
[White "Ashiku, Franc"]
[Black "Galchenko, Matvey"]
[WhiteFideId "4700066"]
[BlackFideId "24175480"]
[WhiteElo "2601"]
[BlackElo "2864"]
[Result "1/2-1/2"]
[Round "02"]
[TimeControl "180+1"]
[Date "2022.11.02"]
[WhiteClock "0:00:09"]
[BlackClock "0:01:03"]

1. d4 {[%clk 0:03:00]}  Nf6 {[%clk 0:02:55]} 2. c4 {[%clk 0:03:01]}  c5 {[%clk 0:02:55]} 3. d5 {[%clk 0:02:59]}  e6 {[%clk 0:02:55]} 4. g3 {[%clk 0:02:59]}  exd5 {[%clk 0:02:56]} 5. cxd5 {[%clk 0:03:00]}  d6 {[%clk 0:02:57]} 6. Bg2 {[%clk 0:03:00]}  b5 {[%clk 0:02:57]} 7. Nf3 {[%clk 0:02:59]}  g6 {[%clk 0:02:55]} 8. O-O {[%clk 0:02:56]}  Bg7 {[%clk 0:02:56]} 9. e4 {[%clk 0:02:52]}  Bg4 {[%clk 0:02:52]} 10. Re1 {[%clk 0:02:29]}  O-O {[%clk 0:02:51]} 11. h3 {[%clk 0:02:29]}  Bxf3 {[%clk 0:02:51]} 12. Bxf3 {[%clk 0:02:25]}  Nbd7 {[%clk 0:02:52]} 13. a4 {[%clk 0:02:18]}  a6 {[%clk 0:02:51]} 14. Bf4 {[%clk 0:02:13]}  Qb6 {[%clk 0:02:48]} 15. Nc3 {[%clk 0:02:01]}  Rfe8 {[%clk 0:02:46]} 16. Qc2 {[%clk 0:01:56]}  b4 {[%clk 0:02:39]} 17. a5 {[%clk 0:01:36]}  Qc7 {[%clk 0:02:39]} 18. Nd1 {[%clk 0:01:36]}  Nxd5 {[%clk 0:02:39]} 19. Bd2 {[%clk 0:01:29]}  Ne7 {[%clk 0:02:37]} 20. Ne3 {[%clk 0:01:28]}  Ne5 {[%clk 0:02:37]} 21. Bg2 {[%clk 0:01:26]}  N5c6 {[%clk 0:02:37]} 22. Qa4 {[%clk 0:01:11]}  Bxb2 {[%clk 0:02:31]} 23. Rab1 {[%clk 0:01:11]}  Bg7 {[%clk 0:02:32]} 24. Nd5 {[%clk 0:01:12]}  Nxd5 {[%clk 0:02:30]} 25. exd5 {[%clk 0:01:10]}  Rxe1+ {[%clk 0:02:30]} 26. Rxe1 {[%clk 0:01:10]}  Nd4 {[%clk 0:02:29]} 27. Re8+ {[%clk 0:01:08]}  Rxe8 {[%clk 0:02:29]} 28. Qxe8+ {[%clk 0:01:09]}  Bf8 {[%clk 0:02:30]} 29. Bh6 {[%clk 0:00:49]}  Qe7 {[%clk 0:02:29]} 30. Qb8 {[%clk 0:00:41]}  b3 {[%clk 0:02:26]} 31. Bf1 {[%clk 0:00:41]}  f6 {[%clk 0:01:33]} 32. Bxa6 {[%clk 0:00:38]}  Kf7 {[%clk 0:01:33]} 33. Bxf8 {[%clk 0:00:34]}  Qxf8 {[%clk 0:01:34]} 34. Bc8 {[%clk 0:00:29]}  b2 {[%clk 0:01:26]} 35. Be6+ {[%clk 0:00:27]}  Nxe6 {[%clk 0:01:26]} 36. dxe6+ {[%clk 0:00:28]}  Kxe6 {[%clk 0:01:27]} 37. Qxb2 {[%clk 0:00:27]}  Qa8 {[%clk 0:01:24]} 38. Qb6 {[%clk 0:00:26]}  c4 {[%clk 0:01:23]} 39. a6 {[%clk 0:00:24]}  c3 {[%clk 0:01:24]} 40. Qe3+ {[%clk 0:00:16]}  Kf7 {[%clk 0:01:24]} 41. Qxc3 {[%clk 0:00:09]}  Qxa6 {[%clk 0:01:25]} 42. Qc7+ {[%clk 0:00:10]}  Kg8 {[%clk 0:01:25]} 43. Qd8+ {[%clk 0:00:10]}  Kf7 {[%clk 0:01:26]} 44. Qc7+ {[%clk 0:00:10]}  Ke6 {[%clk 0:01:26]} 45. Qxh7 {[%clk 0:00:09]}  Qd3 {[%clk 0:01:24]} 46. h4 {[%clk 0:00:09]}  d5 {[%clk 0:01:24]} 47. Qg8+ {[%clk 0:00:09]}  Kd6 {[%clk 0:01:23]} 48. Qd8+ {[%clk 0:00:09]}  Ke5 {[%clk 0:01:22]} 49. Qe7+ {[%clk 0:00:09]}  Kf5 {[%clk 0:01:23]} 50. Qd7+ {[%clk 0:00:10]}  Ke4 {[%clk 0:01:17]} 51. Qe6+ {[%clk 0:00:10]}  Kd4 {[%clk 0:01:17]} 52. Qxf6+ {[%clk 0:00:11]}  Kc5 {[%clk 0:01:18]} 53. Qe7+ {[%clk 0:00:11]}  Kb5 {[%clk 0:01:17]} 54. Qe3 {[%clk 0:00:10]}  Qd1+ {[%clk 0:01:13]} 55. Kg2 {[%clk 0:00:09]}  Qb1 {[%clk 0:01:07]} 56. Qe8+ {[%clk 0:00:09]}  Kc4 {[%clk 0:01:07]} 57. Qc6+ {[%clk 0:00:09]}  Kd4 {[%clk 0:01:08]} 58. Qf6+ {[%clk 0:00:09]}  Kc5 {[%clk 0:01:08]} 59. Qe7+ {[%clk 0:00:09]}  Kc4 {[%clk 0:01:08]} 60. Qc7+ {[%clk 0:00:09]}  Kd3 {[%clk 0:01:07]} 61. Qd6 {[%clk 0:00:09]}  Kd4 {[%clk 0:01:06]} 62. Qf6+ {[%clk 0:00:08]}  Kc5 {[%clk 0:01:06]} 63. Qe7+ {[%clk 0:00:08]}  Kc4 {[%clk 0:01:05]} 64. Qc7+ {[%clk 0:00:08]}  Kd3 {[%clk 0:01:03]} 65. Qd6 {[%clk 0:00:09]}  Kd4 {[%clk 0:01:03]} 66. Qf6+ {[%clk 0:00:09]} 1/2-1/2


[Site "https://www.chess.com"]

[Event "Titled Tuesday Blitz November 01 Late 2022"]
[White "Baskakov, Egor"]
[Black "Di Nicolantonio, Lucas"]
[WhiteFideId "24197866"]
[BlackFideId "680460"]
[WhiteElo "2833"]
[BlackElo "2579"]
[Result "1-0"]
[Round "02"]
[TimeControl "180+1"]
[Date "2022.11.02"]
[WhiteClock "0:01:38"]
[BlackClock "0:00:13"]

1. e4 {[%clk 0:03:00]}  g6 {[%clk 0:02:59]} 2. g3 {[%clk 0:03:00]}  Bg7 {[%clk 0:02:57]} 3. Bg2 {[%clk 0:03:01]}  d6 {[%clk 0:02:54]} 4. Ne2 {[%clk 0:03:01]}  Nf6 {[%clk 0:02:55]} 5. h3 {[%clk 0:03:00]}  O-O {[%clk 0:02:55]} 6. O-O {[%clk 0:03:01]}  c5 {[%clk 0:02:53]} 7. d4 {[%clk 0:03:01]}  cxd4 {[%clk 0:02:53]} 8. Nxd4 {[%clk 0:03:02]}  Nc6 {[%clk 0:02:51]} 9. Ne2 {[%clk 0:03:03]}  Bd7 {[%clk 0:02:43]} 10. Nbc3 {[%clk 0:03:03]}  Rc8 {[%clk 0:02:43]} 11. a4 {[%clk 0:03:03]}  Ne5 {[%clk 0:02:29]} 12. Nd5 {[%clk 0:03:00]}  Bc6 {[%clk 0:02:09]} 13. Ra2 {[%clk 0:02:57]}  Bxd5 {[%clk 0:01:51]} 14. exd5 {[%clk 0:02:58]}  Qc7 {[%clk 0:01:51]} 15. b3 {[%clk 0:02:58]}  Ned7 {[%clk 0:01:37]} 16. c4 {[%clk 0:02:57]}  Nc5 {[%clk 0:01:36]} 17. Be3 {[%clk 0:02:57]}  a5 {[%clk 0:01:33]} 18. Nd4 {[%clk 0:02:57]}  Nfd7 {[%clk 0:01:30]} 19. Re1 {[%clk 0:02:56]}  Rfe8 {[%clk 0:01:29]} 20. Rae2 {[%clk 0:02:54]}  Ne5 {[%clk 0:01:24]} 21. Nb5 {[%clk 0:02:55]}  Qd8 {[%clk 0:01:23]} 22. Rd2 {[%clk 0:02:50]}  h5 {[%clk 0:01:13]} 23. Bd4 {[%clk 0:02:50]}  Ned7 {[%clk 0:01:04]} 24. Bxg7 {[%clk 0:02:46]}  Kxg7 {[%clk 0:01:05]} 25. Rde2 {[%clk 0:02:46]}  Ne5 {[%clk 0:01:02]} 26. Re3 {[%clk 0:02:46]}  Qb6 {[%clk 0:00:47]} 27. Kh1 {[%clk 0:02:36]}  Qd8 {[%clk 0:00:42]} 28. Qd4 {[%clk 0:02:25]}  Kg8 {[%clk 0:00:39]} 29. f4 {[%clk 0:02:23]}  Ned7 {[%clk 0:00:39]} 30. f5 {[%clk 0:02:23]}  g5 {[%clk 0:00:37]} 31. h4 {[%clk 0:02:18]}  f6 {[%clk 0:00:23]} 32. hxg5 {[%clk 0:02:04]}  fxg5 {[%clk 0:00:24]} 33. Bf3 {[%clk 0:01:52]}  Nf6 {[%clk 0:00:24]} 34. Qd2 {[%clk 0:01:46]}  Qd7 {[%clk 0:00:22]} 35. Re6 {[%clk 0:01:44]}  Kf7 {[%clk 0:00:13]} 36. Qxg5 {[%clk 0:01:40]}  Rg8 {[%clk 0:00:14]} 37. Rxf6+ {[%clk 0:01:37]}  exf6 {[%clk 0:00:14]} 38. Bxh5+ {[%clk 0:01:37]}  Kf8 {[%clk 0:00:13]} 39. Qxf6+ {[%clk 0:01:38]}  Qf7 {[%clk 0:00:13]} 40. Qxf7# {[%clk 0:01:38]} 1-0


[Site "https://www.chess.com"]

[Event "Titled Tuesday Blitz November 01 Late 2022"]
[White "Bayo Milagro, Alvaro"]
[Black "Xiong, Jeffery"]
[WhiteFideId "22275240"]
[BlackFideId "2047640"]
[WhiteElo "2270"]
[BlackElo "2725"]
[Result "0-1"]
[Round "02"]
[TimeControl "180+1"]
[Date "2022.11.01"]
[WhiteClock "0:00:07"]
[BlackClock "0:00:55"]

1. e4 {[%clk 0:03:00]}  c5 {[%clk 0:02:59]} 2. Nf3 {[%clk 0:03:00]}  d6 {[%clk 0:02:59]} 3. d4 {[%clk 0:02:59]}  cxd4 {[%clk 0:03:00]} 4. Nxd4 {[%clk 0:02:58]}  Nf6 {[%clk 0:03:01]} 5. Nc3 {[%clk 0:02:59]}  a6 {[%clk 0:03:01]} 6. Be2 {[%clk 0:02:59]}  e5 {[%clk 0:03:01]} 7. Nb3 {[%clk 0:03:00]}  Be7 {[%clk 0:03:01]} 8. O-O {[%clk 0:03:00]}  O-O {[%clk 0:03:02]} 9. Kh1 {[%clk 0:03:00]}  Re8 {[%clk 0:03:01]} 10. a4 {[%clk 0:02:54]}  Be6 {[%clk 0:02:58]} 11. f4 {[%clk 0:02:53]}  exf4 {[%clk 0:02:59]} 12. Bxf4 {[%clk 0:02:54]}  Nc6 {[%clk 0:03:00]} 13. Qe1 {[%clk 0:02:54]}  Rc8 {[%clk 0:02:59]} 14. Rd1 {[%clk 0:02:53]}  Qc7 {[%clk 0:02:49]} 15. Qg3 {[%clk 0:02:50]}  Ne5 {[%clk 0:02:37]} 16. Nd4 {[%clk 0:02:48]}  Qb6 {[%clk 0:02:23]} 17. b3 {[%clk 0:02:15]}  Qc5 {[%clk 0:02:18]} 18. Nd5 {[%clk 0:01:12]}  Nxe4 {[%clk 0:01:33]} 19. Nxe7+ {[%clk 0:01:12]}  Rxe7 {[%clk 0:01:34]} 20. Qh4 {[%clk 0:01:02]}  Ng6 {[%clk 0:01:32]} 21. Qe1 {[%clk 0:00:33]}  Nc3 {[%clk 0:01:24]} 22. Rd3 {[%clk 0:00:20]}  Nxe2 {[%clk 0:01:08]} 23. Nxe2 {[%clk 0:00:13]}  Qxc2 {[%clk 0:01:04]} 24. Rxd6 {[%clk 0:00:13]}  Bg4 {[%clk 0:01:00]} 25. Qd1 {[%clk 0:00:07]}  Qxd1 {[%clk 0:00:56]} 26. Rfxd1 {[%clk 0:00:07]}  Bxe2 {[%clk 0:00:55]} 27. Rd8+ {[%clk 0:00:07]}  Re8 {[%clk 0:00:55]} 0-1


[Site "https://www.chess.com"]

[Event "Titled Tuesday Blitz November 01 Late 2022"]
[White "Bluebaum, Matthias"]
[Black "Milosevic, Milos"]
[WhiteFideId "24651516"]
[BlackFideId "964875"]
[WhiteElo "2633"]
[BlackElo "2321"]
[Result "1-0"]
[Round "02"]
[TimeControl "180+1"]
[Date "2022.11.02"]
[WhiteClock "0:02:24"]
[BlackClock "0:01:39"]

1. d4 {[%clk 0:03:00]}  d5 {[%clk 0:02:59]} 2. c4 {[%clk 0:03:00]}  c6 {[%clk 0:02:59]} 3. Nc3 {[%clk 0:02:58]}  Nf6 {[%clk 0:02:59]} 4. Nf3 {[%clk 0:02:58]}  e6 {[%clk 0:02:57]} 5. Qc2 {[%clk 0:02:58]}  Bd6 {[%clk 0:02:54]} 6. e4 {[%clk 0:02:57]}  dxe4 {[%clk 0:02:55]} 7. Nxe4 {[%clk 0:02:58]}  Nxe4 {[%clk 0:02:55]} 8. Qxe4 {[%clk 0:02:59]}  Nd7 {[%clk 0:02:55]} 9. Bd2 {[%clk 0:02:58]}  Nf6 {[%clk 0:02:55]} 10. Qc2 {[%clk 0:02:58]}  O-O {[%clk 0:02:56]} 11. Bc3 {[%clk 0:02:57]}  Re8 {[%clk 0:02:55]} 12. Bd3 {[%clk 0:02:56]}  h6 {[%clk 0:02:55]} 13. O-O-O {[%clk 0:02:56]}  a5 {[%clk 0:02:52]} 14. Kb1 {[%clk 0:02:56]}  Bb4 {[%clk 0:02:50]} 15. Rhg1 {[%clk 0:02:54]}  Bxc3 {[%clk 0:02:49]} 16. Qxc3 {[%clk 0:02:55]}  Qb6 {[%clk 0:02:31]} 17. g4 {[%clk 0:02:51]}  Nd7 {[%clk 0:02:23]} 18. g5 {[%clk 0:02:50]}  h5 {[%clk 0:02:21]} 19. g6 {[%clk 0:02:49]}  f6 {[%clk 0:02:18]} 20. Bc2 {[%clk 0:02:36]}  e5 {[%clk 0:02:07]} 21. c5 {[%clk 0:02:33]}  Qc7 {[%clk 0:02:00]} 22. Bb3+ {[%clk 0:02:33]}  Kf8 {[%clk 0:01:53]} 23. Qc4 {[%clk 0:02:27]}  Nb8 {[%clk 0:01:39]} 24. Qg8+ {[%clk 0:02:23]}  Ke7 {[%clk 0:01:39]} 25. Qxg7+ {[%clk 0:02:24]} 1-0


[Site "https://www.chess.com"]